bitfinex-derivatives/quotes_BTCF0:USTF0_20250629
["timestamp","ask_amount","ask_price","bid_price","bid_amount"]
[1751235505699,0.81008737,107890.0,107880.0,0.75839345]
[1751235506595,0.81008737,107890.0,107880.0,0.8414996]
[1751235509991,0.81008737,107890.0,107880.0,0.8413796]
[1751235511100,0.605867,107890.0,107880.0,0.8413796]
[1751235511491,0.81008737,107890.0,107880.0,1.04559997]
[1751235515205,0.81008737,107890.0,107880.0,0.8413796]
[1751235516202,0.81008737,107890.0,107880.0,1.04559997]
[1751235516403,0.81008737,107890.0,107880.0,0.8413796]
[1751235516593,0.81008737,107890.0,107880.0,1.04559997]
[1751235516796,0.81008737,107890.0,107880.0,0.8413796]
[1751235516996,0.81008737,107890.0,107880.0,0.63767166]
[1751235517199,0.81008737,107890.0,107880.0,0.8412597]
[1751235518202,0.81008737,107890.0,107880.0,0.6929882]
[1751235519105,0.81008737,107890.0,107880.0,0.1199882]
[1751235519306,0.605867,107890.0,107880.0,0.1199882]
[1751235519502,0.81008737,107890.0,107880.0,0.1199882]
[1751235519904,0.1482715,107880.0,107870.0,1e-08]
[1751235520105,1.25709261,107880.0,107870.0,0.05538426]
[1751235520297,1.36167162,107880.0,107870.0,0.00838426]
[1751235520704,0.1482991,107860.0,107850.0,1.22777764]
[1751235520906,0.55673984,107860.0,107850.0,1.22777764]
[1751235521707,0.35251947,107860.0,107850.0,1.22777764]
[1751235521906,0.35263676,107860.0,107850.0,1.22777764]
[1751235522209,0.35263676,107860.0,107850.0,0.65481764]
[1751235522414,0.35263676,107860.0,107850.0,1.22981764]
[1751235522708,0.1482991,107860.0,107850.0,1.22981764]
[1751235525810,0.1482991,107860.0,107850.0,1.4341553]
[1751235526109,0.1482991,107860.0,107850.0,1.22981764]
[1751235526305,0.1482991,107860.0,107850.0,1.4341553]
[1751235526504,0.35263676,107860.0,107850.0,1.4341553]
[1751235526806,0.35263676,107860.0,107850.0,1.22981764]
[1751235530407,0.35263676,107860.0,107850.0,0.61973994]
[1751235530607,0.35263676,107860.0,107850.0,1.19014058]
[1751235532413,0.36201255,107860.0,107850.0,1.19014058]
[1751235532716,0.6203184,107870.0,107860.0,0.1482993]
[1751235533013,0.2595184,107870.0,107860.0,0.4781776]
[1751235533208,0.2595184,107870.0,107860.0,0.27383994]
[1751235539106,0.2595184,107870.0,107860.0,0.4781776]
[1751235540513,0.2224441,107870.0,107860.0,0.8389776]
[1751235540812,0.2224441,107870.0,107860.0,0.81133696]
[1751235541615,0.2224441,107870.0,107860.0,0.86662833]
[1751235541910,0.1482855,107870.0,107860.0,0.97784653]
[1751235542508,0.1482855,107870.0,107860.0,0.73643507]
[1751235542707,0.1482855,107870.0,107860.0,0.94077273]
[1751235543610,0.1482855,107870.0,107860.0,0.73643507]
[1751235544009,0.1482855,107870.0,107860.0,0.94077273]
[1751235549822,0.1482855,107870.0,107860.0,1.07593273]
[1751235550717,0.148281,107880.0,107870.0,0.16474402]
[1751235550921,0.148281,107880.0,107870.0,1.48842519]
[1751235552124,0.148281,107880.0,107870.0,1.45151979]
[1751235552418,0.148281,107880.0,107870.0,1.48841277]
[1751235552922,0.148281,107880.0,107870.0,1.45151979]
[1751235553617,0.14116,107900.0,107890.0,0.1482581]
[1751235553819,0.006,107900.0,107890.0,1.08628555]
[1751235554015,0.1482306,107910.0,107900.0,0.1482444]
[1751235554220,0.59769029,107930.0,107920.0,0.1482169]
[1751235554422,0.001,107930.0,107920.0,0.92519456]
[1751235554618,0.001,107930.0,107920.0,1.34779456]
[1751235554918,0.1492033,107930.0,107920.0,1.34779456]
[1751235555523,0.1492033,107930.0,107920.0,1.37545917]
[1751235555926,0.1492033,107930.0,107920.0,1.17112151]
[1751235556118,0.1492033,107930.0,107920.0,0.45635076]
[1751235556320,0.35354096,107930.0,107920.0,0.60026461]
[1751235556525,0.2112033,107930.0,107920.0,0.74848201]
[1751235557121,0.41554096,107930.0,107920.0,0.02766461]
[1751235557325,0.41554096,107930.0,107920.0,0.7214175]
[1751235557524,0.41554096,107930.0,107920.0,0.74908211]
[1751235557824,0.001,107930.0,107920.0,1.31421977]
[1751235558017,0.001,107930.0,107920.0,1.37861977]
[1751235558217,0.001,107930.0,107920.0,1.24500211]
[1751235558425,0.1492041,107930.0,107920.0,1.44933977]
[1751235558820,0.001,107930.0,107920.0,1.51323977]
[1751235559623,0.0005,107950.0,107940.0,0.1481904]
[1751235559821,0.0005,107950.0,107940.0,1.40087269]
[1751235560625,0.1486828,107950.0,107940.0,1.31637503]
[1751235560924,0.0336,107950.0,107940.0,0.58953503]
[1751235561121,0.0336,107950.0,107940.0,0.79387269]
[1751235561317,0.1817829,107950.0,107940.0,0.58953503]
[1751235561624,0.2129829,107950.0,107940.0,1.11328133]
[1751235561824,0.2460829,107950.0,107940.0,0.37744463]
[1751235562026,0.2460829,107950.0,107940.0,1.11384123]
[1751235562329,0.2460829,107950.0,107940.0,0.96564463]
[1751235562531,0.81122056,107950.0,107940.0,0.75304123]
[1751235562823,0.81122056,107950.0,107940.0,0.16484143]
[1751235563025,0.6068829,107950.0,107940.0,0.16484143]
[1751235563221,0.6068829,107950.0,107940.0,0.75332143]
[1751235563424,0.6068829,107950.0,107940.0,0.95765909]
[1751235563623,0.6068829,107950.0,107940.0,0.75332143]
[1751235564228,0.6068829,107950.0,107940.0,0.60512463]
[1751235564429,0.81122056,107950.0,107940.0,0.01664463]
[1751235564623,0.81122056,107950.0,107940.0,0.75344143]
[1751235565124,0.6068829,107950.0,107940.0,0.75380143]
[1751235565326,0.81122056,107950.0,107940.0,0.75380143]
[1751235566122,0.6068829,107950.0,107940.0,0.75380143]
[1751235566931,0.0979,107950.0,107940.0,1.31893909]
[1751235567726,0.0979,107950.0,107940.0,1.34893909]
[1751235568232,0.0979,107950.0,107940.0,1.14460143]
[1751235568533,0.0979,107950.0,107940.0,0.79237909]
[1751235568733,0.0336,107950.0,107940.0,1.38125909]
[1751235569233,0.0336,107950.0,107940.0,1.41305909]
[1751235569736,0.0005,107950.0,107940.0,1.41305909]
[1751235570627,0.0005,107950.0,107940.0,1.20872143]
[1751235570828,0.0005,107950.0,107940.0,1.41305909]
[1751235571823,0.0005,107950.0,107940.0,1.20872143]
[1751235572023,0.0005,107950.0,107940.0,1.41305909]
[1751235572228,0.1486831,107950.0,107940.0,1.41305909]
[1751235573725,0.0005,107950.0,107940.0,1.41305909]
[1751235574239,0.0005,107950.0,107940.0,1.20872143]
[1751235574433,0.0005,107950.0,107940.0,1.41305909]
[1751235575034,0.0005,107950.0,107940.0,1.20872143]
[1751235575234,0.0005,107950.0,107940.0,1.41305909]
[1751235575538,0.0005,107950.0,107940.0,1.50169346]
[1751235575931,0.0005,107950.0,107940.0,1.2973558]
[1751235576129,0.0005,107950.0,107940.0,1.50169346]
[1751235577045,0.0005,107950.0,107940.0,1.72438565]
[1751235577243,0.0005,107950.0,107940.0,1.31571033]
[1751235577436,0.0005,107950.0,107940.0,1.52004799]
[1751235580743,0.0005,107950.0,107940.0,1.52921838]
[1751235581143,0.1486831,107950.0,107940.0,1.45550574]
[1751235581344,0.0005,107950.0,107940.0,1.45550574]
[1751235581537,0.0005,107950.0,107940.0,1.53848614]
[1751235582142,0.0005,107950.0,107940.0,1.61182005]
[1751235582445,0.0005,107950.0,107940.0,1.44633535]
[1751235582745,0.0005,107950.0,107940.0,1.65067301]
[1751235582942,0.0005,107950.0,107940.0,1.06179301]
[1751235583138,0.0005,107950.0,107940.0,1.79155301]
[1751235583342,0.0005,107950.0,107940.0,1.89028291]
[1751235583847,0.0313,107960.0,107950.0,0.1481831]
[1751235584035,0.001,107960.0,107950.0,0.97448874]
[1751235584238,0.001,107960.0,107950.0,0.8826588]
[1751235584640,0.1481419,107980.0,107970.0,0.0370365]
[1751235584941,0.0624,107980.0,107970.0,1.48238772]
[1751235585142,0.0945,107980.0,107970.0,0.68981006]
[1751235585447,0.0945,107980.0,107970.0,1.20433526]
[1751235585448,0.2426419,107980.0,107970.0,1.20433526]
[1751235586845,0.2426419,107980.0,107970.0,1.279617]
[1751235587149,0.2426419,107980.0,107970.0,1.48395466]
[1751235587645,0.0945,107980.0,107970.0,0.89535466]
[1751235587847,0.2426419,107980.0,107970.0,1.48387466]
[1751235588048,0.2426419,107980.0,107970.0,1.279537]
[1751235588242,0.2426419,107980.0,107970.0,1.2060271]
[1751235588544,0.80777956,107980.0,107970.0,0.77061228]
[1751235588748,0.80777956,107980.0,107970.0,0.91876788]
[1751235589644,0.80777956,107980.0,107970.0,0.91896788]
[1751235590246,0.2426419,107980.0,107970.0,1.48410554]
[1751235590442,0.2426419,107980.0,107970.0,1.51700554]
[1751235590649,0.18617,107990.0,107980.0,0.1481419]
[1751235590942,0.35346576,107990.0,107980.0,0.13965287]
[1751235591152,0.77646576,107990.0,107980.0,0.69543287]
[1751235591644,0.77646576,107990.0,107980.0,0.10675287]
[1751235591843,0.77646576,107990.0,107980.0,0.69543287]
[1751235592350,0.77646576,107990.0,107980.0,0.69547287]
[1751235592740,0.2113281,107990.0,107980.0,0.69547287]
[1751235592941,0.77646576,107990.0,107980.0,0.10675287]
[1751235593145,0.77646576,107990.0,107980.0,0.69627287]
[1751235593346,0.88147084,107990.0,107980.0,0.0883614]
[1751235593846,0.88147084,107990.0,107980.0,0.12509147]
[1751235594646,0.88147084,107990.0,107980.0,0.0883614]
[1751235595947,0.88147084,107990.0,107980.0,0.21814433]
[1751235596149,0.77646576,107990.0,107980.0,0.21814433]
[1751235596349,0.77646576,107990.0,107980.0,0.80926433]
[1751235596845,0.77646576,107990.0,107980.0,0.66112243]
[1751235597351,0.77646576,107990.0,107980.0,0.80926433]
[1751235597551,0.5721281,107990.0,107980.0,0.66112243]
[1751235597852,0.77646576,107990.0,107980.0,0.66112243]
[1751235598053,0.77646576,107990.0,107980.0,0.82570355]
[1751235598346,0.5721281,107990.0,107980.0,0.82570355]
[1751235598554,0.77646576,107990.0,107980.0,0.84406252]
[1751235598956,0.77646576,107990.0,107980.0,0.69592062]
[1751235599251,0.77646576,107990.0,107980.0,0.10480062]
[1751235599455,0.77646576,107990.0,107980.0,0.69592062]
[1751235599655,0.77646576,107990.0,107980.0,0.84406252]
[1751235599957,0.77646576,107990.0,107980.0,0.84394252]
[1751235600460,0.5721281,107990.0,107980.0,0.84394252]
[1751235600656,0.77646576,107990.0,107980.0,0.84394252]
[1751235601061,0.5721281,107990.0,107980.0,0.84394252]
[1751235601258,0.77646576,107990.0,107980.0,0.84394252]
[1751235602852,0.5721281,107990.0,107980.0,0.84394252]
[1751235603061,0.77646576,107990.0,107980.0,0.84394252]
[1751235603454,0.5721281,107990.0,107980.0,0.69580062]
[1751235603653,0.77646576,107990.0,107980.0,0.69580062]
[1751235603953,0.77646576,107990.0,107980.0,0.84394252]
[1751235604154,0.5721281,107990.0,107980.0,0.84394252]
[1751235604557,0.77646576,107990.0,107980.0,0.84394252]
[1751235604753,0.77646576,107990.0,107980.0,0.69580062]
[1751235604960,0.5721281,107990.0,107980.0,0.69580062]
[1751235605153,0.77646576,107990.0,107980.0,0.69580062]
[1751235605555,0.77646576,107990.0,107980.0,0.66787362]
[1751235605956,0.77646576,107990.0,107980.0,0.07727362]
[1751235606151,0.87710712,107990.0,107980.0,0.07727362]
[1751235607761,0.87710712,107990.0,107980.0,0.0608344]
[1751235608258,0.67276946,107990.0,107980.0,0.0608344]
[1751235608460,0.87710712,107990.0,107980.0,0.0608344]
[1751235609165,0.67276946,107990.0,107980.0,0.0608344]
[1751235609455,0.87710712,107990.0,107980.0,0.0608344]
[1751235609661,0.87710712,107990.0,107980.0,0.07784366]
[1751235610463,0.67276946,107990.0,107980.0,0.07784366]
[1751235611155,0.87710712,107990.0,107980.0,0.07784366]
[1751235611762,0.67276946,107990.0,107980.0,0.0608344]
[1751235611962,0.87710712,107990.0,107980.0,0.0608344]
[1751235612149,0.87710712,107990.0,107980.0,0.09757859]
[1751235612862,0.1481419,107980.0,107970.0,0.05508514]
[1751235613159,0.1481557,107970.0,107960.0,0.07347661]
[1751235613360,0.97893102,107970.0,107960.0,0.07347661]
[1751235613568,0.1481694,107960.0,107950.0,0.22165971]
[1751235613863,0.6051694,107960.0,107950.0,0.22165971]
[1751235614358,0.6051694,107960.0,107950.0,0.81269971]
[1751235614557,0.6051694,107960.0,107950.0,0.22165971]
[1751235614752,0.80950706,107960.0,107950.0,0.81265971]
[1751235615159,0.80950706,107960.0,107950.0,0.7391831]
[1751235616060,0.80950706,107960.0,107950.0,0.7431831]
[1751235616762,0.6051694,107960.0,107950.0,0.7451831]
[1751235616964,0.1481694,107960.0,107950.0,0.94952076]
[1751235617162,0.5089694,107960.0,107950.0,0.8376831]
[1751235617456,0.71330706,107960.0,107950.0,0.8075831]
[1751235618358,0.5719694,107960.0,107950.0,0.2165831]
[1751235618559,0.77630706,107960.0,107950.0,0.2165831]
[1751235618760,0.77630706,107960.0,107950.0,0.8073431]
[1751235619061,0.77630706,107960.0,107950.0,0.8073031]
[1751235620265,0.5719694,107960.0,107950.0,0.8073031]
[1751235620458,0.77630706,107960.0,107950.0,0.8073031]
[1751235620760,0.6157464,107970.0,107960.0,0.1481694]
[1751235620959,0.6157464,107970.0,107960.0,0.41460706]
[1751235621165,0.82008406,107970.0,107960.0,0.2102694]
[1751235621658,0.6157464,107970.0,107960.0,0.2102694]
[1751235621859,0.6157464,107970.0,107960.0,0.41460706]
[1751235623067,0.1481557,107970.0,107960.0,0.2843491]
[1751235623363,0.1481557,107970.0,107960.0,0.88068676]
[1751235623763,0.1481557,107970.0,107960.0,0.6763491]
[1751235623965,0.1481557,107970.0,107960.0,0.88068676]
[1751235624669,0.5830278,107980.0,107970.0,0.1481557]
[1751235624963,0.5830278,107980.0,107970.0,1.00813336]
[1751235625158,0.7151429,107990.0,107980.0,0.1481419]
[1751235625360,0.7151429,107990.0,107980.0,0.2123419]
[1751235625565,0.91948056,107990.0,107980.0,0.2123419]
[1751235626265,0.7151429,107990.0,107980.0,0.2123419]
[1751235627164,0.6532429,107990.0,107980.0,0.2123419]
[1751235627770,0.85758056,107990.0,107980.0,0.2123419]
[1751235628072,0.6532429,107990.0,107980.0,0.41667956]
[1751235628367,0.6532429,107990.0,107980.0,0.2123419]
[1751235628577,0.1481419,107980.0,107970.0,0.81603491]
[1751235628767,0.5089419,107980.0,107970.0,0.87843491]
[1751235629075,0.71327956,107980.0,107970.0,0.87843491]
[1751235629669,0.5089419,107980.0,107970.0,0.87843491]
[1751235630365,0.5089419,107980.0,107970.0,0.87851491]
[1751235630562,0.71327956,107980.0,107970.0,0.87851491]
[1751235630761,0.5089419,107980.0,107970.0,0.87851491]
[1751235631270,0.71327956,107980.0,107970.0,0.10721001]
[1751235631571,0.5731419,107980.0,107970.0,0.84800571]
[1751235631772,0.5089419,107980.0,107970.0,1.08244337]
[1751235633076,0.5089419,107980.0,107970.0,1.13761596]
[1751235633776,0.1481419,107980.0,107970.0,1.49841596]
[1751235634772,0.5371014,107990.0,107970.0,1.49841596]
[1751235634773,0.5051014,107990.0,107970.0,1.49841596]
[1751235634970,0.223203,107990.0,107980.0,0.77537956]
[1751235635167,0.223203,107990.0,107980.0,0.80707956]
[1751235635168,0.1861685,107990.0,107980.0,0.80707956]
[1751235635370,0.1491364,107990.0,107980.0,0.80707956]
[1751235635974,0.1491364,107990.0,107980.0,0.6027419]
[1751235636274,0.1491364,107990.0,107980.0,0.80707956]
[1751235636672,0.1491282,107990.0,107980.0,0.80707956]
[1751235636872,0.001,107990.0,107980.0,0.80707956]
[1751235637177,0.1491282,107990.0,107980.0,0.86225215]
[1751235637771,0.1491282,107990.0,107980.0,0.80707956]
[1751235638173,0.1491282,107990.0,107980.0,0.6027419]
[1751235638376,0.1491282,107990.0,107980.0,0.80707956]
[1751235638774,0.1491282,107990.0,107980.0,0.82372496]
[1751235638975,0.001,107990.0,107980.0,0.82372496]
[1751235639270,0.001,107990.0,107980.0,0.82572496]
[1751235639482,0.1491282,107990.0,107980.0,0.82572496]
[1751235639970,0.001,107990.0,107980.0,0.82572496]
[1751235640368,0.001,107990.0,107980.0,0.6213873]
[1751235640369,0.1491282,107990.0,107980.0,0.6213873]
[1751235640573,0.001,107990.0,107980.0,0.82572496]
[1751235641278,0.1491282,107990.0,107980.0,0.82572496]
[1751235641674,0.001,107990.0,107980.0,0.82572496]
[1751235641879,0.001,107990.0,107980.0,0.88089755]
[1751235642179,0.001,107990.0,107980.0,0.67455989]
[1751235642180,0.1491282,107990.0,107980.0,0.67455989]
[1751235642372,0.1491282,107990.0,107980.0,0.67855989]
[1751235642570,0.001,107990.0,107980.0,0.88289755]
[1751235642977,0.001,107990.0,107980.0,0.71527435]
[1751235643680,0.001,107990.0,107980.0,0.91961201]
[1751235644184,0.001,107990.0,107980.0,0.71527435]
[1751235644575,0.001,107990.0,107980.0,0.91961201]
[1751235644787,0.001,107990.0,107980.0,0.92161201]
[1751235644978,0.1901536,108000.0,107990.0,0.1481282]
[1751235645279,0.1901536,108000.0,107990.0,1.41000196]
[1751235645280,0.1531249,108000.0,107990.0,1.41000196]
[1751235645483,0.005,108000.0,107990.0,1.38777864]
[1751235645783,0.1531145,108000.0,107990.0,1.38777864]
[1751235646176,0.1531145,108000.0,107990.0,1.18344098]
[1751235646373,0.1531145,108000.0,107990.0,1.38777864]
[1751235647085,0.1531145,108000.0,107990.0,1.39177864]
[1751235647278,0.1531145,108000.0,107990.0,1.41400196]
[1751235647879,0.1531145,108000.0,107990.0,1.41600196]
[1751235648076,0.1531145,108000.0,107990.0,1.2116643]
[1751235648285,0.1531145,108000.0,107990.0,1.1814843]
[1751235648485,0.2169145,108000.0,107990.0,1.1814843]
[1751235648685,0.2169145,108000.0,107990.0,1.38582196]
[1751235648878,0.2169145,108000.0,107990.0,1.41772196]
[1751235650286,0.2169145,108000.0,107990.0,1.2133843]
[1751235650486,0.2169145,108000.0,107990.0,1.38102586]
[1751235651086,0.62558982,108000.0,107990.0,0.62015286]
[1751235651389,0.78205216,108000.0,107990.0,0.60868]
[1751235653290,1.27331456,108000.0,107990.0,0.006]
[1751235654878,1.87643456,108000.0,107990.0,0.004]
[1751235656078,1.6720969,108000.0,107990.0,0.004]
[1751235656281,0.148142,107980.0,107970.0,0.46325676]
[1751235656482,0.508942,107980.0,107970.0,0.2589191]
[1751235656689,0.570442,107980.0,107970.0,0.46325676]
[1751235657086,0.570442,107980.0,107970.0,0.49495676]
[1751235657490,0.570442,107980.0,107970.0,0.49695676]
[1751235658089,0.570442,107980.0,107970.0,0.255923]
[1751235659192,0.570442,107980.0,107970.0,0.2926191]
[1751235659492,0.570442,107980.0,107970.0,0.255923]
[1751235659692,0.570442,107980.0,107970.0,0.46026066]
[1751235659893,0.570442,107980.0,107970.0,0.47473684]
[1751235660293,0.570442,107980.0,107970.0,0.46026066]
[1751235660794,0.209642,107980.0,107970.0,0.87223238]
[1751235660995,0.6517409,107990.0,107980.0,0.148142]
[1751235661189,0.6402722,107990.0,107980.0,0.35247966]
[1751235661389,0.6402722,107990.0,107980.0,0.96559966]
[1751235661589,0.6402722,107990.0,107980.0,1.02749966]
[1751235661791,0.6088722,107990.0,107980.0,1.02749966]
[1751235661991,0.3925,107990.0,107980.0,1.02749966]
[1751235662193,0.2585861,108000.0,107990.0,0.1481282]
[1751235662493,0.6857861,108000.0,107990.0,0.1481282]
[1751235662794,0.89012376,108000.0,107990.0,0.1481282]
[1751235664389,0.89012376,108000.0,107990.0,0.1501282]
[1751235664791,0.6857861,108000.0,107990.0,0.1501282]
[1751235665191,0.89012376,108000.0,107990.0,0.1501282]
[1751235667096,0.89012376,108000.0,107990.0,0.002]
[1751235667699,1.19083817,108000.0,107990.0,0.002]
[1751235668894,0.98650051,108000.0,107990.0,0.002]
[1751235669198,0.78216285,108000.0,107990.0,0.002]
[1751235669598,0.98650051,108000.0,107990.0,0.002]
[1751235670601,0.78216285,108000.0,107990.0,0.002]
[1751235670802,0.98650051,108000.0,107990.0,0.002]
[1751235671596,0.98650051,108000.0,107990.0,0.1501282]
[1751235672604,0.98650051,108000.0,107990.0,0.002]
[1751235672992,0.78216285,108000.0,107990.0,0.1501282]
[1751235673404,0.98650051,108000.0,107990.0,0.1501282]
[1751235673609,0.98650051,108000.0,107990.0,0.002]
[1751235674098,0.98650051,108000.0,107990.0,0.1501282]
[1751235674501,0.98650051,108000.0,107990.0,0.002]
[1751235676198,0.98650051,108000.0,107990.0,0.1501282]
[1751235677506,0.98650051,108000.0,107990.0,0.002]
[1751235678000,0.98650051,108000.0,107990.0,0.1501282]
[1751235678605,0.6857861,108000.0,107990.0,0.1501282]
[1751235678903,0.89012376,108000.0,107990.0,0.2122282]
[1751235679105,0.89012376,108000.0,107990.0,0.0337]
[1751235679306,0.89012376,108000.0,107990.0,0.002]
[1751235681810,0.6857861,108000.0,107990.0,0.1501282]
[1751235682004,0.89012376,108000.0,107990.0,0.1501282]
[1751235683310,0.89012376,108000.0,107990.0,0.002]
[1751235683710,0.6857861,108000.0,107990.0,0.002]
[1751235684009,0.89012376,108000.0,107990.0,0.1501282]
[1751235684411,0.89012376,108000.0,107990.0,0.002]
[1751235684709,0.89012376,108000.0,107990.0,0.1501282]
[1751235684912,0.89012376,108000.0,107990.0,0.1776916]
[1751235685111,0.89012376,108000.0,107990.0,0.2435916]
[1751235686909,0.89012376,108000.0,107990.0,0.0625634]
[1751235688005,0.89012376,108000.0,107990.0,0.2106916]
[1751235690014,0.89012376,108000.0,107990.0,0.0625634]
[1751235690515,0.89012376,108000.0,107990.0,0.2106916]
[1751235690813,0.6857861,108000.0,107990.0,0.2106916]
[1751235691017,0.89012376,108000.0,107990.0,0.2106916]
[1751235692119,0.89012376,108000.0,107990.0,0.0625634]
[1751235697520,0.89012376,108000.0,107990.0,0.2106916]
[1751235697819,0.89012376,108000.0,107990.0,0.0625634]
[1751235699416,0.89012376,108000.0,107990.0,0.0295634]
[1751235700019,1.09446142,108000.0,107990.0,0.0295634]
[1751235700220,1.80629723,108000.0,107990.0,0.0295634]
[1751235700519,0.1481282,107990.0,107980.0,0.0275634]
[1751235700724,0.77476586,107990.0,107980.0,0.0275634]
[1751235702526,0.77476586,107990.0,107980.0,0.0305634]
[1751235703023,0.77476586,107990.0,107980.0,0.0295634]
[1751235703226,0.77576586,107990.0,107980.0,0.0295634]
[1751235703831,0.77576586,107990.0,107980.0,0.0275634]
[1751235704424,0.5714282,107990.0,107980.0,0.0275634]
[1751235704629,0.77576586,107990.0,107980.0,0.0275634]
[1751235704931,0.5714282,107990.0,107980.0,0.0275634]
[1751235705230,0.77576586,107990.0,107980.0,0.0275634]
[1751235705934,0.77576586,107990.0,107980.0,0.1757054]
[1751235706132,0.5714282,107990.0,107980.0,0.1757054]
[1751235706338,0.5099282,107990.0,107980.0,0.41673916]
[1751235706540,0.5099282,107990.0,107980.0,0.51283916]
[1751235706739,0.5099282,107990.0,107980.0,0.3085015]
[1751235706939,0.5099282,107990.0,107980.0,0.2809381]
[1751235707438,0.71426586,107990.0,107980.0,0.27544706]
[1751235707635,0.71326586,107990.0,107980.0,0.27544706]
[1751235707934,0.71326586,107990.0,107980.0,0.27644706]
[1751235708238,0.71326586,107990.0,107980.0,0.2488381]
[1751235708443,0.74606586,107990.0,107980.0,0.2488381]
[1751235708939,0.74606586,107990.0,107980.0,0.1006961]
[1751235708940,0.77756586,107990.0,107980.0,0.1006961]
[1751235709133,0.77756586,107990.0,107980.0,0.248838]
[1751235709437,0.77756586,107990.0,107980.0,0.06530504]
[1751235709835,0.77756586,107990.0,107980.0,0.21344694]
[1751235710431,0.77756586,107990.0,107980.0,0.06530504]
[1751235710632,0.77756586,107990.0,107980.0,0.21344694]
[1751235711239,0.77756586,107990.0,107980.0,0.06530504]
[1751235712244,0.77756586,107990.0,107980.0,0.0376961]
[1751235712438,0.77756586,107990.0,107980.0,0.05201092]
[1751235713838,0.77756586,107990.0,107980.0,0.07962026]
[1751235714640,0.77756586,107990.0,107980.0,0.22776216]
[1751235714840,0.77756586,107990.0,107980.0,0.07962026]
[1751235715235,0.77756586,107990.0,107980.0,0.06530544]
[1751235716037,0.77756586,107990.0,107980.0,0.02860934]
[1751235716739,1.54204586,107990.0,107980.0,0.02860934]
[1751235717039,0.1481419,107980.0,107970.0,0.0366961]
[1751235717241,0.80727956,107980.0,107970.0,0.0366961]
[1751235717541,0.1481557,107970.0,107960.0,0.09186869]
[1751235717743,0.77529336,107970.0,107960.0,0.09186869]
[1751235718837,0.77529336,107970.0,107960.0,0.0366961]
[1751235719035,0.77529336,107970.0,107960.0,0.0416961]
[1751235719547,0.77529336,107970.0,107960.0,0.005]
[1751235721337,0.78461574,107970.0,107960.0,0.005]
[1751235722243,0.78461574,107970.0,107960.0,0.008]
[1751235722635,0.77529336,107970.0,107960.0,0.008]
[1751235722835,0.77529336,107970.0,107960.0,0.1561694]
[1751235723039,0.5709557,107970.0,107960.0,0.1561694]
[1751235723436,0.77529336,107970.0,107960.0,0.1561694]
[1751235724543,0.1481557,107970.0,107960.0,0.78980316]
[1751235724745,0.1431121,107980.0,107970.0,0.1481557]
[1751235724746,0.1851913,107980.0,107970.0,0.1481557]
[1751235724938,0.1851913,107980.0,107970.0,0.41479336]
[1751235725748,0.1851913,107980.0,107970.0,0.2471518]
[1751235725948,0.1851913,107980.0,107970.0,0.2491518]
[1751235727250,0.38952896,107980.0,107970.0,0.1039961]
[1751235727445,0.84452896,107980.0,107970.0,0.0416961]
[1751235727650,0.6401913,107980.0,107970.0,0.005]
[1751235727949,0.84452896,107980.0,107970.0,0.1531557]
[1751235728352,0.84452896,107980.0,107970.0,0.005]
[1751235728744,0.84452896,107980.0,107970.0,0.1531557]
[1751235729142,0.84452896,107980.0,107970.0,0.005]
[1751235733851,0.84452896,107980.0,107970.0,0.1531557]
[1751235734448,0.6401913,107980.0,107970.0,0.1531557]
[1751235734756,0.84452896,107980.0,107970.0,0.1531557]
[1751235736056,0.6401913,107980.0,107970.0,0.1531557]
[1751235736253,0.84452896,107980.0,107970.0,0.1531557]
[1751235737659,0.6401913,107980.0,107970.0,0.1531557]
[1751235737853,0.84452896,107980.0,107970.0,0.1531557]
[1751235738053,0.84452896,107980.0,107970.0,0.2164557]
[1751235740258,0.2155913,107980.0,107970.0,0.2164557]
[1751235740458,0.2155913,107980.0,107970.0,0.2531518]
[1751235740659,0.2155913,107980.0,107970.0,0.27024522]
[1751235740860,0.2155913,107980.0,107970.0,0.30084522]
[1751235741661,0.2155913,107980.0,107970.0,0.26414912]
[1751235742063,0.2155913,107980.0,107970.0,0.23354912]
[1751235742362,0.2155913,107980.0,107970.0,0.27024522]
[1751235742560,0.41992896,107980.0,107970.0,0.27024522]
[1751235743862,0.41992896,107980.0,107970.0,0.27024512]
[1751235744057,0.2470913,107980.0,107970.0,0.27024512]
[1751235744259,0.45142896,107980.0,107970.0,0.27024512]
[1751235744866,0.2470913,107980.0,107970.0,0.27024512]
[1751235745063,0.45142896,107980.0,107970.0,0.27024512]
[1751235745258,0.48152896,107980.0,107970.0,0.27024512]
[1751235746667,0.2771913,107980.0,107970.0,0.27024512]
[1751235746861,0.48152896,107980.0,107970.0,0.27024512]
[1751235747067,0.41992896,107980.0,107970.0,0.27024512]
[1751235748569,0.45122896,107980.0,107970.0,0.27024512]
[1751235749468,0.45122896,107980.0,107970.0,0.63104512]
[1751235749671,0.005,108000.0,107990.0,0.1481282]
[1751235749871,0.005,108000.0,107990.0,0.79433835]
[1751235750072,0.1531145,108000.0,107990.0,0.88121262]
[1751235750267,0.36651819,108000.0,107990.0,0.10859857]
[1751235750463,0.1481282,107990.0,107980.0,0.10877585]
[1751235750771,1.03148788,107990.0,107980.0,0.01684977]
[1751235751373,1.03148788,107990.0,107980.0,0.16499177]
[1751235752174,0.92990586,107990.0,107980.0,0.16499177]
[1751235752674,0.7255682,107990.0,107980.0,0.16499167]
[1751235752874,0.92990586,107990.0,107980.0,0.16499167]
[1751235753576,0.92990586,107990.0,107980.0,0.01684977]
[1751235753879,0.98041907,107990.0,107980.0,0.16499167]
[1751235754273,0.1481419,107980.0,107970.0,0.3941419]
[1751235754476,0.2096419,107980.0,107970.0,0.3941419]
[1751235754676,0.2410419,107980.0,107970.0,0.30192933]
[1751235754886,0.2410419,107980.0,107970.0,0.27192933]
[1751235755086,0.49589277,107980.0,107970.0,0.27192933]
[1751235755287,0.49589277,107980.0,107970.0,0.3271036]
[1751235755485,0.49589277,107980.0,107970.0,0.3291036]
[1751235755788,0.49589277,107980.0,107970.0,0.1120195]
[1751235756189,0.49589277,107980.0,107970.0,0.2601752]
[1751235756590,0.49589277,107980.0,107970.0,0.20500093]
[1751235757189,0.49589277,107980.0,107970.0,0.05684523]
[1751235757489,0.85669277,107980.0,107970.0,0.03975181]
[1751235757691,1.56322655,107980.0,107970.0,0.003]
[1751235757891,0.1481557,107970.0,107960.0,0.04792608]
[1751235758093,0.94934657,107970.0,107960.0,0.04792608]
[1751235758289,0.98134657,107970.0,107960.0,0.04792608]
[1751235759189,0.98134657,107970.0,107960.0,0.05092608]
[1751235759490,0.98134657,107970.0,107960.0,0.04275181]
[1751235760993,0.98134657,107970.0,107960.0,0.006]
[1751235761693,0.98134657,107970.0,107960.0,0.02047754]
[1751235762896,0.98134657,107970.0,107960.0,0.006]
[1751235764794,0.5740557,107970.0,107960.0,0.1541693]
[1751235764996,0.98134657,107970.0,107960.0,0.1541693]
[1751235765583,0.98134657,107970.0,107960.0,0.006]